bitfinex/quotes_ETHUSD_20260308
["timestamp","ask_amount","ask_price","bid_price","bid_amount"]
[1773005545592,1.28014747,1952.9,1952.3,0.68935402]
[1773005546831,1.28014747,1952.9,1952.7,0.001]
[1773005547500,5.12042018,1953.1,1952.7,0.001]
[1773005547702,1.04948368,1953.0,1952.7,0.001]
[1773005550133,1.28014747,1952.9,1952.7,0.001]
[1773005550318,1.27988532,1953.3,1952.7,0.69035402]
[1773005552851,1.04948368,1952.8,1952.5,0.001]
[1773005554213,1.28027858,1952.7,1952.5,0.001]
[1773005561734,1.28027858,1952.7,1952.6,0.001]
[1773005562131,1.28227858,1952.7,1952.6,0.001]
[1773005562519,1.28227858,1952.7,1952.5,0.001]
[1773005569136,1.28227858,1952.7,1952.5,0.69035402]
[1773005570222,1.59292455,1952.7,1952.4,0.001]
[1773005570523,1.59292455,1952.7,1952.4,0.48146029]
[1773005575851,1.59292455,1952.7,1952.5,0.001]
[1773005576058,0.002,1952.6,1952.5,0.001]
[1773005576636,0.002,1952.7,1952.6,0.48046029]
[1773005586182,0.002,1952.8,1952.7,0.49366743]
[1773005587495,0.002,1952.8,1952.5,0.49466743]
[1773005588053,0.002,1952.8,1952.5,1.77507673]
[1773005588253,0.002,1952.8,1952.6,0.49366743]
[1773005589488,0.002,1952.8,1952.7,0.001]
[1773005589990,0.002,1952.8,1952.7,0.49466743]
[1773005597425,0.002,1952.9,1952.8,0.49366743]
[1773005598821,0.002,1952.9,1952.7,0.001]
[1773005599189,0.002,1952.9,1952.7,0.49466743]
[1773005602733,0.002,1952.8,1952.7,0.49466743]
[1773005613829,1.27991293,1953.3,1952.7,1.28127858]
[1773005614028,0.002,1953.2,1952.8,0.45444027]
[1773005614234,0.002,1953.3,1952.8,0.45444027]
[1773005616052,0.81573472,1953.6,1952.9,0.45444027]
[1773005616209,2.41408286,1953.6,1952.9,0.45444027]
[1773005616610,0.31864597,1953.5,1952.9,0.45444027]
[1773005617312,0.002,1953.1,1952.9,0.45444027]
[1773005618016,0.002,1953.1,1953.0,1.73452219]
[1773005621941,0.39885419,1953.6,1953.1,0.45444027]
[1773005622134,0.002,1953.5,1953.1,0.45444027]
[1773005622329,0.002,1953.5,1953.2,1.27995084]
[1773005622533,0.002,1953.5,1953.3,0.45444027]
[1773005623039,0.002,1953.4,1953.2,1.73439111]
[1773005623239,0.002,1953.4,1953.1,0.45444027]
[1773005623444,0.002,1953.3,1953.1,0.45444027]
[1773005623641,0.32064597,1953.5,1953.1,0.45444027]
[1773005623834,0.002,1953.4,1953.1,0.45444027]
[1773005626527,0.002,1953.3,1953.2,0.45444027]
[1773005626727,0.002,1953.4,1953.2,0.45444027]
[1773005626943,0.002,1953.4,1953.1,0.45444027]
[1773005626944,0.32064597,1953.4,1953.1,0.45444027]
[1773005627148,0.002,1953.3,1953.1,0.45444027]
[1773005628630,0.004,1953.3,1953.1,0.45444027]
[1773005629536,0.002,1953.3,1953.1,0.45444027]
[1773005635370,0.002,1953.2,1953.0,3.17149266]
[1773005637671,0.002,1953.2,1953.0,2.71705239]
[1773005637973,0.002,1953.2,1953.1,0.45444027]
[1773005640483,0.32064597,1953.2,1952.8,0.45544027]
[1773005640660,0.002,1953.3,1952.8,1.73560057]
[1773005640661,0.32064597,1953.1,1952.8,1.73560057]
[1773005640848,0.31864597,1953.1,1952.8,1.73560057]
[1773005642152,0.31864597,1953.1,1953.0,0.001]
[1773005645874,0.32064597,1953.1,1953.0,0.001]
[1773005648385,0.31864597,1953.1,1953.0,0.001]
[1773005650666,0.002,1953.2,1953.0,0.001]
[1773005650912,0.002,1953.1,1953.0,0.001]
[1773005652054,0.002,1953.1,1953.0,0.501]
[1773005653987,0.002,1953.2,1953.1,1.78001638]
[1773005654191,0.002,1953.3,1953.1,0.499]
[1773005655870,0.002,1953.3,1953.1,0.5]
[1773005656054,0.002,1953.2,1953.1,1.78001638]
[1773005656255,1e-08,1953.4,1953.2,0.499]
[1773005657855,0.00200001,1953.4,1953.1,1.28101638]
[1773005658857,0.00200001,1953.4,1953.1,0.5]
[1773005659058,0.00200001,1953.4,1953.1,0.001]
[1773005661073,0.002,1953.3,1953.1,0.001]
[1773005663557,0.002,1953.3,1952.9,0.001]
[1773005663762,0.001,1953.2,1952.9,0.001]
[1773005664393,0.00100001,1953.4,1953.0,0.4995]
[1773005664862,0.00100001,1953.4,1952.9,0.5005]
[1773005665908,0.00100001,1953.4,1952.9,1.78064152]
[1773005666564,0.00100001,1953.4,1952.9,0.5005]
[1773005667061,0.00100001,1953.4,1952.9,1.78063532]
[1773005667257,0.00100001,1953.4,1953.0,0.4995]
[1773005667783,1e-08,1953.4,1953.0,0.4995]
[1773005668083,1e-08,1953.4,1953.1,0.4995]
[1773005668985,0.002,1953.3,1953.1,0.4995]
[1773005669182,0.002,1953.3,1953.0,1.78056688]
[1773005669795,0.002,1953.3,1953.1,0.4995]
[1773005670188,0.002,1953.3,1953.1,1.77946527]
[1773005674596,0.002,1953.3,1953.1,0.4995]
[1773005675999,0.002,1953.3,1953.1,1.77951563]
[1773005676294,0.002,1953.3,1953.1,0.4995]
[1773005679571,0.002,1953.3,1953.2,0.4995]
[1773005679767,0.001,1953.2,1953.0,0.001]
[1773005680485,0.001,1953.2,1953.1,0.001]
[1773005681004,0.002,1953.2,1953.0,0.001]
[1773005692698,0.002,1953.2,1953.0,0.501]
[1773005693592,0.002,1953.2,1953.1,0.001]
[1773005694716,0.002,1953.2,1952.8,0.501]
[1773005695591,0.002,1953.2,1952.5,0.501]
[1773005695792,0.002,1953.2,1952.5,0.001]
[1773005695793,1.0487345,1952.9,1952.5,0.001]
[1773005696117,0.002,1953.2,1952.5,0.001]
[1773005696118,1.0487345,1953.1,1952.5,0.001]
[1773005696492,1.28021302,1952.8,1952.5,0.001]
[1773005696792,1.28021302,1952.8,1952.0,0.00253886]
[1773005696793,1.0487345,1952.7,1952.0,0.00253886]
[1773005697088,1.0487345,1952.7,1952.1,0.5]
[1773005698015,2.65721302,1952.8,1951.7,0.001]
[1773005698016,1.0487345,1952.3,1951.7,0.001]
[1773005698189,9.4386105,1952.4,1951.7,0.001]
[1773005698190,1.0487345,1952.1,1951.7,0.001]
[1773005698390,1.0487345,1952.1,1951.7,0.501]
[1773005698633,1.2807377,1952.0,1951.7,0.501]
[1773005700698,1.28027858,1952.8,1951.8,0.5]
[1773005701336,2.32901308,1952.8,1951.8,0.5]
[1773005701838,1.28027858,1952.8,1951.8,0.5]
[1773005702002,1.28167181,1953.0,1951.8,0.5]
[1773005702198,0.00153886,1953.0,1951.8,0.5]
[1773005702398,1.28201523,1953.2,1952.1,0.49923057]
[1773005702399,0.002,1953.2,1952.1,0.49923057]
[1773005702638,0.002,1953.2,1952.5,0.49923057]
[1773005703913,0.00353886,1953.2,1952.5,0.49923057]
[1773005705538,1.2834897,1953.2,1952.7,0.49923057]
[1773005706244,0.002,1953.1,1952.7,0.49923057]
[1773005707346,0.00153886,1953.0,1952.6,0.001]
[1773005708932,0.00153886,1953.0,1952.6,0.50023057]
[1773005709643,1.28162078,1953.0,1952.6,0.50023057]
[1773005710345,0.00153886,1952.9,1952.6,0.001]
[1773005710915,1.28008192,1953.0,1952.6,0.50023057]
[1773005711145,1.28162078,1953.0,1952.6,0.50023057]
[1773005711960,0.00153886,1952.9,1952.6,0.50023057]
[1773005713755,0.00153886,1952.9,1952.5,0.50023057]
[1773005718256,0.00153886,1952.9,1952.6,0.001]
[1773005725564,0.00153886,1952.9,1952.6,0.50023057]
[1773005730135,0.00153886,1952.9,1952.5,0.48281451]
[1773005730340,0.00153886,1952.9,1952.5,0.001]
[1773005730648,0.49437344,1952.7,1952.4,0.48181451]
[1773005731148,0.49437344,1952.7,1952.4,0.48281451]
[1773005732163,0.49437344,1952.7,1952.4,0.001]
[1773005732678,1.28034415,1952.6,1952.4,0.001]
[1773005732982,0.4681611,1952.5,1952.0,0.00153886]
[1773005733271,0.4681611,1952.4,1951.8,0.48625669]
[1773005734345,0.4681611,1952.4,1951.7,0.48725669]
[1773005734541,0.4681611,1952.2,1951.7,0.48725669]
[1773005736690,0.4681611,1952.0,1951.7,0.001]
[1773005738793,1.74892707,1952.0,1951.7,0.48725669]
[1773005739963,0.4681611,1951.9,1951.7,0.001]
[1773005741285,1.28076597,1952.0,1951.7,0.48725669]
[1773005741461,1.74892707,1952.0,1951.7,0.48725669]
[1773005741882,0.4681611,1951.9,1951.7,0.001]
[1773005742983,1.28076597,1952.0,1951.7,0.48725669]
[1773005743184,1.74892707,1952.0,1951.8,0.001]
[1773005745114,1.05132589,1952.3,1951.9,0.48625669]
[1773005745278,0.4681611,1952.2,1951.9,0.48625669]
[1773005746609,0.4681611,1952.2,1951.8,0.001]
[1773005747314,1.74883319,1952.1,1951.8,0.001]
[1773005748115,1.28067209,1952.1,1951.8,0.48725669]
[1773005750404,0.4681611,1952.0,1951.8,0.001]
[1773005751212,1.74883319,1952.1,1951.8,0.48725669]
[1773005754924,0.4681611,1952.0,1951.8,0.001]
[1773005755322,0.4681611,1952.0,1951.9,0.001]
[1773005755624,0.4701611,1952.0,1951.9,0.001]
[1773005756024,0.002,1952.0,1951.9,0.001]
[1773005758820,0.4701611,1952.0,1951.7,0.001]
[1773005759927,1.75094268,1952.0,1951.7,0.001]
[1773005760318,1.75094268,1952.0,1951.7,0.48725669]
[1773005761908,0.4681611,1951.9,1951.7,0.001]
[1773005762110,1.74897264,1951.9,1951.7,0.001]
[1773005762721,1.28081154,1951.9,1951.7,0.49264434]
[1773005763224,1.75792399,1952.0,1951.7,0.49264434]
[1773005765430,1.75792399,1952.0,1951.7,0.001]
[1773005765629,0.47793986,1951.9,1951.7,0.001]
[1773005767436,1.75974317,1951.9,1951.8,0.0011]
[1773005767817,1.28180331,1951.9,1951.5,1.20383964]
[1773005768005,0.47793986,1951.8,1951.5,1.20383964]
[1773005769629,1.75883875,1951.8,1951.5,1.20383964]
[1773005779141,1.75883875,1951.8,1951.6,0.001]
[1773005780722,0.47793986,1951.7,1951.4,0.06284906]
[1773005783071,1.75892338,1951.7,1951.4,0.06284906]
[1773005790872,1.75892338,1951.7,1951.5,0.0011]
[1773005791040,1.75992338,1951.7,1951.5,0.0011]
[1773005793074,0.49376477,1951.6,1951.5,0.0011]
[1773005803483,1.77476497,1951.6,1951.5,0.0011]
[1773005803779,0.49376477,1951.6,1951.5,0.0011]
[1773005804582,1.77476497,1951.6,1951.5,0.0011]
[1773005804996,1.77476497,1951.6,1951.1,5.12517798]
[1773005804997,0.49476477,1951.7,1951.1,0.06184906]
[1773005805294,1.77571401,1951.7,1951.3,0.06184906]
[1773005807468,0.49376477,1951.6,1951.3,0.06184906]
[1773005813408,0.002,1952.1,1951.5,0.06184906]
[1773005813619,1.77645624,1952.1,1951.5,0.06184906]
[1773005813816,0.002,1952.2,1951.4,0.05984906]
[1773005814720,0.001,1951.5,1951.4,0.05984906]
[1773005815016,0.002,1952.2,1951.4,0.05984906]
[1773005815520,0.002,1952.2,1951.6,0.05984906]
[1773005815686,0.002,1952.2,1951.8,0.05984906]
[1773005817828,0.002,1952.2,1952.0,0.05984906]
[1773005820199,1e-08,1952.4,1951.8,0.05984906]
[1773005820395,1e-08,1952.4,1951.8,1.28086894]
[1773005820623,1e-08,1952.4,1951.9,0.05984906]
[1773005822325,1e-08,1952.4,1952.1,0.05984906]
[1773005824718,1e-08,1952.4,1952.3,0.05984906]
[1773005826831,1e-08,1952.4,1952.3,1.34038996]
[1773005828669,1.28222932,1952.8,1952.3,1.34038996]
[1773005828670,0.002,1952.8,1952.4,0.05784906]
[1773005828951,0.002,1952.8,1952.6,0.05784906]
[1773005831369,0.002,1952.8,1952.7,1.28027858]
[1773005831840,0.002,1952.8,1952.7,1.33812764]
[1773005832037,0.002,1952.9,1952.8,0.05784906]
[1773005833544,0.002,1952.9,1952.8,1.33806208]
[1773005836473,0.002,1952.9,1952.8,1.28021302]
[1773005838083,1e-08,1953.0,1952.8,1.28021302]
[1773005838368,1e-08,1953.1,1952.8,1.73640218]
[1773005839791,0.002,1952.9,1952.8,1.73640218]
[1773005842094,0.00200001,1953.1,1952.8,1.73640218]
[1773005847198,0.002,1953.1,1952.9,0.45618916]
[1773005847808,0.002,1953.1,1952.8,1.73640218]
[1773005848304,0.4577906,1953.1,1952.8,1.73640218]
[1773005851608,0.4577906,1953.1,1952.9,0.001]
[1773005851911,0.002,1953.0,1952.9,0.001]
[1773005852797,0.002,1953.0,1952.9,0.46368598]
[1773005852978,0.002,1953.1,1952.9,0.46368598]
[1773005854317,0.002,1953.1,1953.0,1.28008192]
[1773005859912,0.48982269,1953.1,1953.0,1.28008192]
[1773005860231,0.48982269,1953.2,1952.9,5.12155134]
[1773005861008,0.48982269,1953.2,1952.9,5.58423732]
[1773005863922,0.48982269,1953.2,1953.0,0.001]
[1773005864415,0.002,1953.1,1953.0,0.001]
[1773005869962,0.002,1953.3,1953.1,0.46268598]
[1773005871165,0.48782269,1953.9,1953.1,0.46268598]
[1773005872049,0.48782269,1953.9,1953.2,1.27995084]
[1773005872254,0.48782269,1953.8,1953.3,0.46268598]
[1773005874459,0.48782269,1953.8,1953.4,1.74250578]
[1773005874871,0.48782269,1953.8,1953.5,0.46268598]
[1773005875865,1.2980502,1954.0,1953.5,0.46268598]
[1773005876284,0.002,1953.7,1953.6,0.46268598]
[1773005879394,0.002,1953.7,1953.6,1.74237475]
[1773005880397,0.02058756,1954.0,1953.7,0.46268598]
[1773005881805,0.50841025,1954.0,1953.6,0.46268598]
[1773005881993,0.48782269,1953.9,1953.5,0.46268598]
[1773005882370,0.48782269,1953.9,1953.3,3.18351939]
[1773005882570,0.48782269,1953.9,1953.3,1.74251939]
[1773005882986,0.48782269,1953.9,1953.4,0.49700377]
[1773005884423,0.49889716,1953.7,1953.4,0.49700377]
[1773005884588,0.49889716,1953.7,1953.1,6.55103668]
[1773005884589,0.49889716,1953.7,1953.1,3.20796102]
[1773005884788,0.49889716,1953.7,1953.1,3.20801775]
[1773005885698,0.49889716,1953.7,1953.1,2.71101398]
[1773005886640,0.4637911,1953.5,1953.1,0.001]
[1773005888703,1.74354538,1953.5,1953.4,0.001]
[1773005888906,0.4637911,1953.4,1953.1,0.001]
[1773005889306,0.4637911,1953.4,1953.2,0.001]
[1773005891026,1.74367642,1953.3,1953.2,0.001]
[1773005894337,0.4637911,1953.2,1952.9,0.001]
[1773005896716,0.4637911,1953.0,1952.9,0.001]
[1773005898743,0.4637911,1953.1,1952.9,0.001]
[1773005900250,0.4637911,1953.1,1952.8,0.001]
[1773005900450,0.4637911,1953.1,1952.6,0.001]
[1773005900851,0.4637911,1952.9,1952.6,0.001]
[1773005903347,0.4637911,1952.7,1952.6,0.001]
[1773005905558,1.74406968,1952.7,1952.6,0.001]
[1773005905859,0.4637911,1952.7,1952.6,0.001]
[1773005906745,1.74406968,1952.7,1952.6,0.001]
[1773005906948,0.4637911,1952.6,1952.3,0.48131911]
[1773005907143,0.4637911,1952.6,1952.2,0.48231911]
[1773005907338,0.4637911,1952.6,1952.2,1.76292329]
[1773005907866,1.74417853,1952.6,1952.2,0.48231911]
[1773005908246,1.74417853,1952.6,1952.2,1.76292131]
[1773005909058,1.74417853,1952.6,1952.2,0.48231911]
[1773005909262,1.74417853,1952.6,1952.2,1.76292384]
[1773005909739,1.74417853,1952.6,1952.3,0.48131911]
[1773005909940,0.4637911,1952.5,1952.2,0.001]
[1773005910538,0.4637911,1952.5,1952.2,0.48231911]
[1773005911051,0.4637911,1952.5,1952.0,1.28327656]
[1773005911052,0.4637911,1952.3,1952.0,0.00253886]
[1773005911760,0.4637911,1952.1,1951.9,0.001]
[1773005912243,0.4637911,1951.9,1951.4,0.48131911]
[1773005913772,1.28086894,1951.8,1951.4,1.7624393]
[1773005913981,1.28086894,1951.8,1951.5,0.46124094]
[1773005914362,1.74464721,1951.9,1951.5,0.46124094]
[1773005915963,0.45440546,1952.4,1951.6,0.46124094]
[1773005916281,1.434,1952.6,1951.6,0.46124094]
[1773005916282,0.45440546,1952.5,1951.6,0.46124094]
[1773005918081,0.45440546,1952.8,1951.8,0.46124094]
[1773005920381,0.45440546,1952.8,1952.0,0.46124094]
[1773005920582,1.73462445,1952.8,1952.0,0.46124094]
[1773005920969,0.45440546,1952.7,1952.0,0.46124094]
[1773005924093,0.45440546,1952.7,1952.2,0.46124094]
[1773005925892,1.73459625,1952.9,1952.2,0.46124094]
[1773005926066,0.001,1952.6,1952.4,0.46124094]
[1773005930702,0.001,1952.6,1952.4,1.74170637]
[1773005932196,0.001,1952.6,1952.4,1.28046543]
[1773005932400,0.001,1952.6,1952.4,1.74170637]
[1773005935903,0.001,1952.6,1952.4,1.74171456]
[1773005938006,7.73401003,1953.0,1952.5,0.46124094]
[1773005938007,0.45794432,1953.0,1952.5,0.46124094]
[1773005938211,1.73803808,1953.0,1952.5,0.46124094]
[1773005938510,0.45440546,1952.9,1952.5,0.46124094]
[1773005939079,0.45440546,1952.9,1952.6,1.28034415]
[1773005939381,0.45440546,1952.9,1952.6,1.74158509]
[1773005939594,0.00353886,1953.0,1952.7,0.46124094]
[1773005939995,0.002,1952.8,1952.7,0.46124094]
[1773005941382,0.002,1952.8,1952.7,1.74151952]
[1773005942109,0.45640546,1953.1,1952.8,0.46124094]
[1773005942480,0.45640546,1953.1,1952.7,1.28027858]
[1773005942684,0.45640546,1953.1,1952.8,0.46124094]
[1773005944226,0.45640546,1953.1,1952.8,1.74143359]
[1773005944526,0.45640546,1953.1,1952.8,1.7414494]
[1773005949352,0.002,1953.1,1952.9,0.47818309]
[1773005951347,0.002,1953.1,1952.9,0.47918309]
[1773005951555,0.002,1953.1,1953.0,1.28008192]
[1773005952445,0.002,1953.1,1953.0,1.75826501]
[1773005953425,0.45586596,1953.1,1952.9,0.001]
[1773005956357,0.45386596,1953.4,1952.9,1.28114747]
[1773005957476,0.45386596,1953.5,1953.0,0.47818309]
[1773005958327,1.27976323,1953.5,1953.1,1.28001638]
[1773005958540,0.45386596,1953.4,1953.1,1.28001638]
[1773005961281,0.45386596,1953.4,1953.1,1.75819947]
[1773005964090,0.45386596,1953.4,1953.2,0.001]
[1773005964266,0.002,1953.3,1953.2,0.001]
[1773005964467,0.55528036,1953.6,1953.3,0.47818309]
[1773005964774,0.55528036,1953.6,1953.3,1.27988532]
[1773005964975,0.002,1953.4,1953.3,1.27988532]
[1773005966906,0.45586596,1953.4,1953.2,0.001]
[1773005970407,0.002,1953.4,1953.2,0.47918309]
[1773005973513,0.002,1953.4,1953.2,1.75911729]
[1773005976112,0.002,1953.4,1953.2,1.75912159]
[1773005976731,0.002,1953.4,1953.3,0.001]
[1773005977240,0.002,1953.4,1953.0,0.001]
[1773005977241,0.46480035,1953.3,1953.0,0.001]
[1773005978227,0.46480035,1953.1,1953.0,0.001]
[1773005980196,1.74481673,1953.1,1953.0,0.001]
[1773005983634,0.46480035,1953.0,1952.6,0.001]
[1773005984744,0.46480035,1952.8,1952.4,0.48664177]
[1773005985049,0.46480035,1952.8,1952.3,0.48664177]
[1773005986607,0.46480035,1952.8,1952.2,1.28058142]
[1773005986809,0.46480035,1952.6,1952.1,5.12242652]
[1773005987011,0.46480035,1952.6,1952.1,5.60906829]
[1773005988514,0.46480035,1952.6,1952.4,0.001]
[1773006000496,0.46480035,1952.6,1952.5,0.001]
[1773006000990,0.46680035,1952.6,1952.5,0.001]
[1773006001400,0.46480035,1952.5,1952.2,0.001]
[1773006002198,0.46480035,1952.4,1952.2,0.001]
[1773006002602,0.002,1952.8,1952.3,0.48664177]
[1773006004102,0.49871544,1953.2,1952.4,0.49916831]
[1773006004788,0.002,1953.3,1952.4,0.49916831]
[1773006005197,0.50071544,1953.3,1952.4,0.49916831]
[1773006006091,0.50071544,1953.3,1952.5,1.28040973]
[1773006006404,0.50071544,1953.3,1952.6,0.45601282]
[1773006006601,1.78060104,1953.3,1952.6,0.45601282]
[1773006006974,0.50071544,1953.3,1952.6,0.45601282]
[1773006007202,1.78060188,1953.3,1952.6,0.45601282]
[1773006007901,0.002,1953.3,1952.6,0.45601282]
[1773006008295,0.002,1953.3,1952.8,0.45601282]
[1773006008476,0.45953199,1953.3,1952.8,0.45601282]
[1773006012912,1.73943354,1953.3,1952.9,1.28014747]
[1773006013077,1.73943354,1953.3,1952.9,1.73616029]
[1773006013910,0.001,1953.2,1952.9,1.73616029]
[1773006016080,0.002,1953.3,1953.0,0.45750648]
[1773006019045,0.002,1953.3,1953.1,1.73752286]
[1773006019182,0.002,1953.3,1953.2,0.45750648]
[1773006025501,0.002,1953.3,1953.1,0.45750648]
[1773006025703,0.002,1953.3,1953.2,0.001]
[1773006025915,0.002,1953.3,1953.2,0.45850648]
[1773006026626,0.002,1953.3,1953.2,0.001]
[1773006030336,0.002,1953.3,1953.2,0.45850648]
[1773006032226,0.002,1953.3,1953.2,1.73845732]
[1773006035000,0.002,1953.3,1953.2,0.45850648]
[1773006044636,0.08698703,1953.3,1953.0,0.001]
[1773006045813,0.08698703,1953.3,1952.5,0.48265971]
[1773006046031,0.08398703,1953.2,1952.5,0.48265971]
[1773006046431,0.08398703,1953.0,1952.5,0.48265971]
[1773006046822,0.08398703,1953.0,1952.4,0.0011]
[1773006047534,0.08398703,1953.0,1952.4,0.48375971]
[1773006048645,0.08398703,1952.8,1952.4,0.48375971]
[1773006052646,0.08398703,1952.6,1952.4,0.0011]
[1773006054548,0.08398703,1952.7,1952.4,0.0011]
[1773006054750,0.08398703,1952.7,1952.4,0.48375971]
[1773006057346,1.36428682,1952.7,1952.4,0.48375971]
[1773006059664,0.08398703,1952.6,1952.4,0.0011]
[1773006061960,0.08398703,1952.5,1952.4,0.0011]
[1773006062678,1.28036065,1952.6,1952.4,0.0011]
[1773006062842,1.36434768,1952.6,1952.4,0.0011]
[1773006065778,0.08398703,1952.5,1952.2,0.001]
[1773006065970,0.08398703,1952.5,1952.2,0.49374032]
[1773006066682,1.28047531,1952.4,1952.2,0.49374032]
[1773006067598,1.36438365,1952.6,1952.2,0.49374032]
[1773006069892,1.36432351,1952.7,1952.3,0.49274032]
[1773006070391,0.08398703,1952.6,1952.3,0.49274032]
[1773006071106,0.002,1952.8,1952.4,0.49274032]
[1773006072698,0.002,1953.4,1952.4,0.49274032]
[1773006072999,0.002,1953.4,1952.6,0.49274032]
[1773006074162,1e-08,1953.6,1952.6,0.49274032]
[1773006074361,0.002,1953.8,1952.6,0.55827632]
[1773006074561,0.002,1953.8,1952.9,0.49274032]
[1773006074758,0.002,1953.8,1953.1,0.49274032]
[1773006075163,0.02058756,1954.0,1953.2,0.49274032]
[1773006075164,1e-08,1954.0,1953.2,0.49274032]
[1773006075410,0.00600002,1954.0,1953.2,0.49274032]
[1773006076178,1e-08,1954.0,1953.2,0.49274032]
[1773006077209,1e-08,1954.0,1953.2,0.44274032]
[1773006077501,1e-08,1954.0,1953.4,0.49274032]
[1773006079016,5.11653669,1954.5,1953.4,0.49274032]
[1773006079381,0.13598703,1954.2,1953.6,0.49274032]
[1773006086410,0.13598703,1954.2,1953.8,0.49274032]
[1773006088090,0.13598703,1954.2,1953.9,1.27949229]
[1773006088797,0.13598703,1954.2,1953.4,0.49274032]
[1773006089001,0.13598703,1954.0,1953.3,1.28083595]
[1773006089312,0.13598703,1954.0,1953.3,1.28088325]
[1773006089515,0.13598703,1954.0,1953.3,1.28085325]
[1773006089815,0.13598703,1953.8,1953.3,0.001]
[1773006090917,0.13598703,1953.6,1953.3,0.001]
[1773006093618,1.27975428,1953.5,1953.3,0.001]
[1773006093814,0.13598703,1953.4,1953.3,0.001]
[1773006094015,6.30149692,1954.3,1953.3,0.46905347]
[1773006094318,1.41523708,1954.3,1953.3,0.46905347]
[1773006094502,1.27925005,1954.3,1953.3,0.46905347]
[1773006095619,1.27925005,1954.3,1953.5,0.46805347]
[1773006095826,5.11892165,1954.4,1953.7,0.46805347]
[1773006096497,5.25490868,1954.4,1953.7,0.46805347]
[1773006098312,0.13598703,1954.3,1953.8,0.46805347]
[1773006100406,1.27929587,1954.2,1953.8,0.46805347]
[1773006100608,0.002,1954.4,1953.9,0.46805347]
[1773006100915,0.002,1954.5,1953.9,0.46805347]
[1773006102309,0.002,1954.5,1954.0,1.27942681]
[1773006102506,0.002,1954.5,1954.1,0.46805347]
[1773006105232,0.002,1954.5,1954.3,0.46805347]
[1773006108638,0.13998703,1954.5,1954.1,0.46805347]
[1773006110833,0.13998703,1954.5,1954.2,1.74734934]
[1773006112231,0.13998703,1954.5,1954.1,1.27930976]
[1773006112434,0.13998703,1954.5,1954.2,0.001]
[1773006112636,0.002,1954.4,1954.2,0.46905347]
[1773006113454,0.002,1954.4,1954.2,1.74834893]
[1773006117749,0.002,1954.4,1954.2,0.46905347]
[1773006117923,0.002,1954.4,1954.2,0.001]
[1773006118251,0.002,1954.4,1954.2,1.74829594]
[1773006121332,0.002,1954.4,1954.3,0.46805347]
[1773006124252,0.002,1954.4,1954.2,0.46422139]
[1773006124549,0.002,1954.4,1954.2,1.74351161]
[1773006126352,0.002,1954.4,1954.2,0.46422139]
[1773006131429,0.13998703,1954.4,1954.0,0.001]
[1773006132528,0.13998703,1954.4,1953.4,0.001]
[1773006132729,0.13698703,1954.0,1953.4,0.001]
[1773006133160,0.13698703,1954.0,1953.1,1.90278938]
[1773006133360,0.22174,1953.8,1953.1,1.90278938]
[1773006133664,0.22174,1953.7,1953.1,0.001]
[1773006135032,0.22174,1953.6,1953.1,0.001]
[1773006135767,0.22174,1953.4,1953.1,0.001]
[1773006137273,0.22174,1953.4,1953.2,0.001]
[1773006137873,1.50162532,1953.3,1953.2,0.001]
[1773006139984,0.22174,1953.2,1952.9,0.001]
[1773006142241,1.49921752,1953.1,1952.9,0.001]
[1773006144439,0.21920114,1953.0,1952.9,0.001]
[1773006146843,1.49928306,1953.0,1952.9,0.001]
[1773006148475,1.49928306,1953.0,1952.5,0.0011]
[1773006148476,0.21920114,1952.9,1952.5,0.0011]
[1773006148642,0.21920114,1952.8,1952.5,0.0011]
[1773006148840,1.49947972,1952.7,1952.5,0.0011]
[1773006149579,0.21920114,1952.6,1952.5,0.0011]
[1773006149947,1.28027858,1952.7,1952.5,0.0011]
[1773006150375,1.49947972,1952.7,1952.5,0.0011]
[1773006151176,0.21920114,1952.6,1952.5,0.0011]
[1773006151377,1.28027858,1952.7,1952.5,0.0011]
[1773006152186,1.28027858,1952.7,1952.3,0.48278938]
[1773006152385,1.7757274,1952.7,1952.3,0.48278938]
[1773006155283,0.49544882,1952.7,1952.3,0.48278938]
[1773006155483,0.002,1953.2,1952.4,0.4776476]
[1773006157082,0.002,1953.2,1952.6,0.4776476]
[1773006160586,0.002,1953.2,1952.7,1.28027858]
[1773006160792,0.002,1953.2,1952.8,0.4776476]
[1773006161991,0.001,1953.1,1952.8,0.4776476]
[1773006162784,0.001,1953.1,1953.0,0.4776476]
[1773006164271,0.002,1953.2,1953.0,0.4776476]
[1773006164696,0.002,1953.2,1953.1,0.4776476]
[1773006165075,0.35489852,1953.4,1953.1,0.4776476]
[1773006165274,0.002,1953.5,1953.1,0.4776476]
[1773006167071,0.002,1953.5,1953.3,0.4776476]
[1773006169229,0.002,1953.5,1953.4,1.7574674]
[1773006171877,0.002,1953.5,1953.4,0.4776476]
[1773006172078,0.002,1953.5,1953.4,1.7574674]
[1773006172408,0.002,1953.5,1953.4,0.4776476]
[1773006172913,0.002,1953.5,1953.4,1.7574674]
[1773006180382,0.002,1953.5,1953.4,0.4776476]
[1773006183610,0.002,1953.7,1953.4,0.4979068]
[1773006186215,0.002,1953.6,1953.5,0.001]
[1773006189389,0.002,1953.7,1953.6,0.49343903]
[1773006190687,0.002,1953.9,1953.6,0.49343903]
[1773006192814,0.002,1953.9,1953.7,1.27962327]
[1773006195123,0.002,1953.9,1953.7,0.49343903]
[1773006197630,0.002,1953.9,1953.7,1.77302036]
[1773006199127,0.002,1953.8,1953.7,1.77302036]
[1773006202436,0.002,1953.9,1953.8,0.49343903]
[1773006203114,1e-08,1954.1,1953.8,0.49343903]
[1773006204636,1e-08,1954.1,1953.9,1.77293132]
[1773006205612,1e-08,1954.1,1954.0,0.49343903]
[1773006207726,1e-08,1954.1,1954.0,1.77286584]
[1773006208137,0.46997537,1954.3,1954.0,1.77286584]
[1773006211951,0.002,1954.1,1954.0,1.77286584]
[1773006214295,0.002,1954.3,1954.1,0.4767079]
[1773006215158,0.48896981,1955.0,1954.3,0.4767079]
[1773006215327,0.48896981,1955.0,1954.5,0.4767079]